bitfinex/quotes_ETHUSD_20250130
["timestamp","ask_amount","ask_price","bid_price","bid_amount"]
[1738249189663,0.0075,3272.6,3272.2,0.65097367]
[1738249190662,3.7573,3272.8,3272.2,0.28552652]
[1738249190663,0.7573,3272.8,3272.2,0.28552652]
[1738249190863,0.015,3272.5,3272.2,0.28552652]
[1738249191223,3.015,3272.5,3272.2,0.28552652]
[1738249191423,0.015,3272.3,3271.5,0.95787555]
[1738249191969,0.607074,3272.4,3271.6,0.58056053]
[1738249192259,0.7573,3272.8,3272.2,3.05598]
[1738249192446,0.7573,3272.8,3272.1,3.67177]
[1738249193920,0.8089,3273.2,3272.5,3.05571]
[1738249194237,0.8089,3273.8,3272.7,3.05557]
[1738249194435,0.015,3273.7,3272.7,3.05557]
[1738249195020,0.015,3273.7,3272.8,0.03054922]
[1738249195215,0.015,3273.5,3272.8,0.31631257]
[1738249196373,0.8089,3273.8,3272.9,0.55]
[1738249196517,0.8089,3273.8,3273.2,3.05509]
[1738249197181,0.8089,3273.8,3273.3,0.03054492]
[1738249197476,0.0075,3274.4,3272.9,0.83576335]
[1738249197477,0.7593,3274.2,3273.5,3.05483]
[1738249197683,0.7593,3274.2,3273.4,3.0549]
[1738249198088,0.7593,3274.2,3273.4,3.08544139]
[1738249198270,0.7593,3274.2,3273.5,3.05481]
[1738249198576,0.8143,3274.6,3273.7,3.05457]
[1738249198780,0.8143,3274.6,3273.8,0.03053914]
[1738249199337,0.8143,3274.6,3273.8,3.08507914]
[1738249199544,1.19573,3274.6,3273.8,0.03053914]
[1738249199770,0.8143,3274.6,3273.7,3.05457]
[1738249200152,0.8143,3274.6,3273.8,0.03053914]
[1738249200354,0.8143,3274.6,3273.6,3.60473]
[1738249200649,0.8143,3274.6,3273.5,0.6157]
[1738249200850,0.8143,3274.6,3273.0,4.73225168]
[1738249200851,0.7785,3275.3,3274.4,3.05399]
[1738249201057,0.7785,3275.9,3274.6,0.6157]
[1738249201392,3.05286,3275.7,3274.6,0.6157]
[1738249201593,0.015,3275.8,3274.6,0.6157]
[1738249201594,3.06769,3275.8,3274.6,3.66949]
[1738249201788,0.015,3275.8,3274.7,3.08423926]
[1738249201992,0.015,3275.8,3274.7,0.03052926]
[1738249201993,0.46101667,3275.8,3274.7,0.03052926]
[1738249202292,0.46101667,3275.8,3274.4,3.05398]
[1738249202293,3.06794,3275.6,3274.4,3.05398]
[1738249202503,3.015,3275.4,3274.3,3.66977]
[1738249202796,0.8314,3274.8,3273.8,0.62092772]
[1738249202943,0.8327,3274.2,3273.6,0.6200716]
[1738249203339,0.8327,3274.5,3273.6,3.05467]
[1738249203597,0.8327,3274.5,3273.8,3.05446]
[1738249203882,3.05325,3275.2,3274.3,3.05401]
[1738249203883,0.8283,3275.2,3274.3,3.05401]
[1738249204040,0.7657,3275.3,3274.5,3.05386]
[1738249204242,0.7657,3275.3,3274.3,3.05408]
[1738249204499,0.015,3275.2,3274.0,0.6157]
[1738249204790,3.05411,3274.3,3273.9,0.2835959]
[1738249204940,0.306911,3274.2,3273.9,0.2835959]
[1738249205778,6.90076,3274.0,3273.9,0.2835959]
[1738249205985,3.015,3273.9,3273.0,1.55470519]
[1738249206149,0.015,3273.9,3273.0,1.55470519]
[1738249206357,0.015,3273.9,3273.1,3.0552]
[1738249206680,0.39964,3273.9,3273.0,0.95743657]
[1738249206869,0.8209,3273.5,3273.0,0.95743657]
[1738249207072,0.0075,3273.4,3273.0,0.95743657]
[1738249207271,0.015,3273.4,3273.0,0.95743657]
[1738249207583,0.015,3273.4,3272.4,0.03054973]
[1738249207887,3.0,3273.3,3272.4,3.05585]
[1738249208089,3.8397,3273.0,3272.1,3.05613]
[1738249208591,3.8397,3273.0,3270.3,0.3053]
[1738249208592,3.0,3272.6,3271.3,3.05688]
[1738249208756,0.764,3272.5,3271.6,3.05654]
[1738249209102,0.0075,3272.4,3271.5,3.66556626]
[1738249209297,3.05598,3272.3,3271.5,0.60888626]
[1738249209442,0.8089,3272.1,3270.9,3.05723]
[1738249209644,6.05633,3271.9,3270.9,0.61390018]
[1738249209890,3.05624,3272.0,3270.8,3.05728]
[1738249209891,3.0,3271.7,3270.8,3.05728]
[1738249210050,0.7558,3271.6,3270.8,3.05728]
[1738249210254,0.015,3271.5,3270.4,3.67341]
[1738249210454,3.07171,3271.5,3270.5,3.0576]
[1738249210782,0.015,3271.3,3270.4,0.6157]
[1738249211101,0.7558,3271.6,3270.4,0.64626985]
[1738249211282,3.0,3271.5,3270.0,4.06079]
[1738249211443,3.015,3271.3,3270.3,3.05781]
[1738249211644,3.07198,3271.3,3270.2,3.05788]
[1738249211855,3.07198,3271.3,3270.3,3.0578]
[1738249211856,0.7591,3271.2,3270.3,3.0578]
[1738249212252,3.015,3271.1,3270.1,3.05797]
[1738249212857,3.0572,3271.0,3269.9,3.05817]
[1738249213195,3.81608,3271.2,3269.6,4.06079]
[1738249213196,0.9961,3271.2,3269.6,4.06079]
[1738249213395,0.015,3270.9,3269.9,3.05818]
[1738249213697,3.7591,3270.8,3269.8,3.05828]
[1738249213906,0.7591,3270.8,3269.7,3.08895622]
[1738249214104,0.7591,3270.8,3270.0,3.05806]
[1738249214276,0.7591,3270.8,3270.0,3.05804]
[1738249214471,0.7591,3270.8,3269.8,3.05829]
[1738249214472,0.7591,3270.8,3269.6,4.06079]
[1738249214774,0.7591,3270.8,3270.1,3.05799]
[1738249214958,0.7666,3271.1,3270.5,3.05763]
[1738249215356,0.7591,3272.0,3270.9,3.05719]
[1738249215557,0.7591,3272.0,3270.5,0.6157]
[1738249215799,0.237,3272.1,3269.3,3.71624]
[1738249215800,0.0075,3271.4,3270.1,3.6737]
[1738249215984,0.015,3271.2,3269.9,3.05817]
[1738249216300,0.0075,3270.8,3269.9,3.05819]
[1738249216475,3.7591,3271.1,3270.1,3.05798]
[1738249216672,0.015,3271.0,3270.1,3.05798]
[1738249216870,0.015,3271.0,3269.9,3.05819]
[1738249217295,0.015,3270.6,3269.6,3.68390593]
[1738249217476,0.8313,3270.7,3269.6,4.10119313]
[1738249217808,0.015,3270.6,3269.6,3.68398593]
[1738249217965,0.015,3270.6,3269.6,0.62552593]
[1738249218165,0.015,3270.6,3269.9,3.05819]
[1738249218666,0.015,3270.6,3270.0,3.05809]
[1738249218897,0.015,3270.6,3269.6,0.62552593]
[1738249219327,0.8313,3270.7,3269.6,4.07061593]
[1738249219527,0.8313,3270.7,3270.3,3.05779]
[1738249219737,0.8313,3270.7,3270.2,3.05787]
[1738249220045,0.8313,3270.7,3270.0,3.08866375]
[1738249220395,0.8313,3270.7,3270.3,3.0578]
[1738249221644,0.7938,3271.5,3270.5,3.05761]
[1738249221927,0.015,3271.4,3270.1,0.6157]
[1738249222086,0.015,3271.4,3270.4,3.05771]
[1738249222292,0.015,3271.2,3270.1,3.058]
[1738249222492,0.015,3271.0,3270.1,3.058]
[1738249222799,0.7938,3271.1,3270.2,0.03057346]
[1738249223030,0.7938,3271.1,3270.5,3.05763]
[1738249223231,0.8228,3271.9,3271.2,3.05691]
[1738249223392,0.8228,3271.9,3271.3,3.08741427]
[1738249223591,0.8228,3271.9,3271.6,3.05653]
[1738249224013,0.8228,3271.9,3271.1,3.05702]
[1738249224216,0.8228,3271.9,3270.7,3.05738]
[1738249224217,0.015,3271.8,3270.7,3.05738]
[1738249224549,3.015,3271.8,3270.8,3.05735]
[1738249225238,0.015,3271.6,3270.5,3.68450443]
[1738249225536,3.745843,3271.8,3270.5,3.68450443]
[1738249225537,3.0,3271.4,3270.5,3.05763]
[1738249225703,0.8436,3271.3,3270.0,3.0581]
[1738249226028,0.8436,3271.3,3269.9,0.6157]
[1738249226188,3.29487,3271.4,3269.9,0.6157]
[1738249226189,0.015,3270.9,3270.0,0.61799952]
[1738249226391,0.0075,3270.7,3269.9,3.05819]
[1738249226597,0.0075,3270.7,3269.5,0.6157]
[1738249226598,0.015,3270.7,3269.7,3.05836]
[1738249226905,0.8103,3270.8,3269.7,3.05836]
[1738249227214,3.8103,3270.8,3269.7,3.05836]
[1738249227620,3.8103,3270.8,3269.9,3.05812]
[1738249228205,4.497058,3270.8,3269.9,3.05812]
[1738249228410,0.7613,3270.5,3269.5,3.05853]
[1738249228590,0.7613,3270.5,3269.3,3.05875]
[1738249228797,0.7613,3270.5,3269.9,3.05816]
[1738249229007,0.7613,3270.5,3269.4,0.61017508]
[1738249229190,0.7613,3270.5,3270.3,3.05775]
[1738249229509,0.7726,3270.8,3270.4,3.05772]
[1738249229703,0.7726,3270.8,3270.4,0.03057299]
[1738249229903,0.7726,3271.1,3270.7,3.05744]
[1738249230128,0.7726,3271.1,3270.3,3.05775]
[1738249230333,0.7726,3271.1,3270.2,3.05785]
[1738249230532,0.015,3271.0,3270.1,3.05794]
[1738249230694,0.015,3271.0,3270.2,3.0579]
[1738249230898,0.015,3271.0,3270.1,3.058]
[1738249231099,0.015,3271.0,3270.2,3.05785]
[1738249231300,0.015,3271.0,3270.1,3.05797]
[1738249231497,3.07238,3270.8,3269.7,3.05832]
[1738249231754,0.7587,3270.7,3269.7,3.05832]
[1738249231912,0.7587,3270.7,3269.7,0.03057657]
[1738249232113,0.7587,3270.7,3270.0,3.05809]
[1738249232429,0.7587,3270.7,3270.2,3.05785]
[1738249232651,0.7587,3270.7,3270.4,3.05764]
[1738249232799,0.7587,3271.3,3269.9,0.6157]
[1738249233139,0.7587,3271.3,3270.7,3.05737]
[1738249233497,0.7587,3271.3,3270.1,3.05793]
[1738249233498,0.015,3271.2,3270.1,3.05793]
[1738249233741,0.786,3271.6,3270.4,3.05766]
[1738249233742,0.812,3271.1,3270.4,3.05766]
[1738249233937,0.812,3271.1,3270.5,3.05756]
[1738249234149,0.812,3271.1,3270.7,3.05744]
[1738249234465,0.812,3271.1,3270.9,3.05722]
[1738249234818,0.812,3271.1,3270.7,3.05744]
[1738249235218,0.812,3271.1,3270.8,0.03056933]
[1738249235411,3.05614,3272.1,3270.2,0.3053]
[1738249235412,0.796,3271.6,3271.3,3.05687]
[1738249235815,0.796,3271.6,3270.5,0.6157]
[1738249235816,0.796,3271.6,3270.9,3.05722]
[1738249236018,0.796,3271.6,3270.7,3.05742]
[1738249236275,0.8327,3271.5,3270.4,3.05765]
[1738249236555,0.0075,3271.4,3270.5,3.05759]
[1738249236759,0.0075,3271.4,3270.6,0.0305706]
[1738249236956,0.0075,3271.4,3270.7,3.05738]
[1738249237373,0.0075,3271.4,3270.6,0.0305706]
[1738249237518,0.0075,3271.4,3270.6,3.05753]
[1738249237715,0.0075,3271.4,3270.5,3.05759]
[1738249237918,3.0,3271.3,3270.5,3.05761]
[1738249238191,0.69381,3271.4,3270.6,3.05753]
[1738249238328,4.0916,3271.5,3270.8,3.05732]
[1738249238329,0.7989,3271.5,3270.8,3.05732]
[1738249238529,0.7989,3271.5,3270.6,3.05751]
[1738249238762,0.7989,3271.5,3270.7,3.05744]
[1738249238957,0.7989,3271.5,3270.6,3.08807977]
[1738249239264,0.7989,3271.5,3269.6,3.05844]
[1738249239265,3.0,3271.0,3270.0,3.05804]
[1738249239436,0.8117,3270.9,3269.6,3.05844]
[1738249239760,0.8117,3270.9,3270.2,3.05784]
[1738249239935,0.8117,3270.9,3270.1,3.05798]
[1738249240255,0.0075,3270.8,3269.8,3.05821]
[1738249240424,3.06491,3270.8,3269.9,3.05818]
[1738249240947,3.05774,3270.4,3270.2,0.28613164]
[1738249241146,0.7715,3270.3,3270.2,0.28613164]
[1738249241352,6.82932,3270.3,3270.2,0.28613164]
[1738249241524,7.39432,3270.3,3270.2,0.28613164]
[1738249241730,7.41042,3270.3,3270.2,0.28613164]
[1738249241959,8.457236,3270.3,3270.2,0.28613164]
[1738249242297,3.05829,3269.8,3269.1,0.28613164]
[1738249242496,4.611816,3270.3,3269.1,0.28613164]
[1738249242497,1.3197,3270.2,3269.1,0.28613164]
[1738249242662,1.3197,3270.2,3269.4,3.05863]
[1738249242991,1.3197,3270.2,3269.1,3.34506164]
[1738249243208,3.15557,3270.1,3269.2,3.05881]
[1738249243351,6.21358,3270.1,3269.5,0.28613164]
[1738249243740,3.88876,3270.0,3269.5,0.28613164]
[1738249243989,0.8306,3270.0,3269.5,0.28613164]
[1738249245090,3.8306,3270.0,3269.5,0.28613164]
[1738249245240,4.591525,3270.0,3269.1,3.05887]
[1738249245442,1.591525,3270.0,3269.0,1.57460843]
[1738249245672,0.8306,3270.0,3269.3,3.0587]
[1738249246608,3.05836,3269.8,3269.0,0.9586081]
[1738249246772,3.0,3269.7,3268.9,3.05911]
[1738249246961,3.0,3269.7,3268.4,0.6157]
[1738249247157,3.0,3269.7,3268.8,3.05916]
[1738249247358,3.0,3269.7,3269.0,3.05895]
[1738249247658,6.07328,3269.9,3269.0,3.05895]
[1738249247858,0.754,3269.8,3268.4,0.6157]
[1738249248097,6.0585,3269.6,3268.6,3.05933]
[1738249248413,3.0,3269.6,3269.1,0.28559107]
[1738249248710,3.05885,3269.2,3269.1,0.28559107]
[1738249248876,3.05875,3269.4,3269.1,0.28559107]
[1738249249079,0.388895,3269.3,3269.1,0.28559107]
[1738249249518,0.388895,3269.3,3268.5,3.05948]
[1738249249519,0.388895,3269.3,3268.5,3.34507107]
[1738249249727,0.015,3269.4,3268.6,3.05938]
[1738249250041,3.8302,3269.5,3268.7,3.08988928]
[1738249250235,0.8302,3269.5,3268.9,3.05904]
[1738249250404,0.8302,3269.5,3269.0,0.03058729]
[1738249250602,0.8302,3269.5,3269.2,3.05884]
[1738249250998,0.8302,3269.5,3268.8,3.05914]
[1738249251241,0.8302,3269.5,3268.4,3.6157]
[1738249251242,0.8302,3269.5,3269.2,3.05884]
[1738249251452,0.7565,3270.0,3268.8,3.05922]
[1738249251737,0.7565,3270.7,3270.0,3.05807]
[1738249251941,0.7565,3270.7,3270.0,0.03057665]
[1738249252159,0.8049,3271.5,3270.0,0.03057665]
[1738249252441,0.8049,3271.5,3270.1,3.05801]
[1738249252656,0.8049,3271.5,3270.5,3.05763]
[1738249252947,0.7813,3272.3,3271.2,3.0569]
[1738249253281,0.7813,3272.3,3271.2,0.03056385]
[1738249253452,0.7813,3272.3,3271.8,3.05632]
[1738249253592,0.7813,3272.3,3271.9,0.03055864]
[1738249253803,0.7813,3272.3,3271.8,3.05632]
[1738249254232,0.7813,3272.3,3271.9,3.05631]
[1738249254410,0.7903,3272.7,3271.9,3.05631]
[1738249254758,0.7903,3272.7,3272.1,3.05605]
[1738249255239,3.05531,3273.0,3272.1,3.05605]
[1738249255240,0.7643,3273.0,3272.3,3.05587]
[1738249255404,0.7643,3273.0,3272.1,3.05613]
[1738249255589,0.7643,3273.0,3272.2,0.03055397]
[1738249255805,0.7643,3273.0,3272.4,3.05584]
[1738249256159,0.7643,3273.0,3272.3,3.05593]
[1738249256474,0.7643,3273.0,3272.1,0.03055398]
[1738249256611,0.7645,3273.4,3272.8,3.05547]
[1738249256811,0.7645,3273.4,3272.6,0.6157]
[1738249257071,0.7645,3274.0,3273.2,3.05506]
[1738249257215,0.7645,3274.0,3273.2,3.08560521]
[1738249257413,0.54901287,3273.9,3273.2,3.05506]
[1738249257713,3.0,3273.8,3273.0,3.05529]
[1738249257913,3.0,3273.8,3273.1,3.05513]
[1738249258115,0.54901287,3273.9,3272.6,0.6157]
[1738249258314,3.05456,3273.8,3272.8,3.05547]
[1738249258560,3.05456,3273.8,3272.6,0.6157]
[1738249258561,3.36035729,3273.7,3272.6,3.67135]
[1738249258744,0.7537,3273.5,3272.3,3.67163]
[1738249258944,3.05518,3273.2,3272.3,3.05593]
[1738249259124,0.0075,3273.3,3272.5,3.05569]
[1738249259327,3.06254,3273.3,3272.4,3.05583]
[1738249259535,0.306254,3273.2,3272.5,3.05573]
[1738249260029,0.7537,3273.5,3272.5,3.05573]
[1738249260362,3.05494,3273.4,3272.4,3.0558]
[1738249260575,0.7537,3273.5,3272.5,0.03055013]
[1738249260722,0.7537,3273.5,3272.7,3.0555]
[1738249260974,3.80862,3273.5,3272.5,3.08630013]
[1738249261282,3.05504,3273.3,3272.3,3.05594]
[1738249261692,3.05531,3273.0,3272.1,0.59881631]
[1738249262006,0.0075,3272.9,3271.9,3.05631]
[1738249262733,0.0075,3272.9,3272.0,0.0305562]
[1738249262734,3.05542,3272.9,3272.0,0.0305562]
[1738249262942,0.7509,3273.1,3271.9,0.03055621]
[1738249263225,0.7509,3273.1,3272.3,3.05586]
[1738249263433,0.37509,3273.0,3272.3,3.05586]
[1738249263778,0.37509,3273.0,3272.1,3.05613]
[1738249263974,0.37509,3273.0,3272.0,3.05623]
[1738249263975,3.06298,3272.9,3272.0,3.05623]
[1738249264174,0.0075,3272.9,3271.6,1.24074013]
[1738249264413,0.0075,3272.9,3272.2,3.05601]
[1738249264625,0.72637,3272.9,3272.2,3.05601]
[1738249264827,0.8286,3273.6,3272.9,3.05536]
[1738249264988,0.8286,3273.6,3273.0,3.08581734]
[1738249265337,0.8286,3273.6,3272.5,0.6157]
[1738249265489,3.8286,3273.6,3272.9,3.05539]
[1738249265686,0.688328,3273.5,3272.9,3.05539]
[1738249266196,0.688328,3273.5,3272.6,3.05567]
[1738249266395,3.88334,3273.6,3272.6,3.05567]
[1738249266602,0.8286,3273.6,3273.0,3.05529]
[1738249266799,0.8286,3273.6,3272.9,0.03054839]
[1738249267031,0.8286,3273.6,3273.0,3.05527]
[1738249267346,0.0075,3274.0,3273.0,3.05527]
[1738249267347,0.7727,3273.9,3273.3,3.055]
[1738249267483,3.05373,3274.7,3273.4,0.03054451]
[1738249267682,3.05373,3274.7,3273.7,3.05455]
[1738249267988,3.0,3274.8,3273.8,0.03053855]
[1738249268185,0.7727,3275.2,3273.8,0.03053855]
[1738249268186,3.05334,3275.1,3274.2,3.05416]
[1738249268405,3.05352,3275.0,3274.1,0.03053656]
[1738249268604,3.0,3274.8,3274.0,3.05436]
[1738249268834,0.610686,3274.9,3273.4,0.59727144]
[1738249269009,0.7727,3275.2,3274.3,0.6157]
[1738249269195,0.7838,3275.6,3275.0,3.05338]
[1738249269708,0.7838,3275.6,3274.9,3.0535]
[1738249269903,1.467454,3275.6,3275.1,3.05329]
[1738249270144,0.66666667,3275.9,3275.2,0.03052902]
[1738249270284,0.66666667,3275.9,3275.0,3.05334]
[1738249270484,3.66666667,3275.9,3275.1,3.05332]
[1738249270788,3.71926667,3275.9,3274.4,0.59831124]
[1738249271025,0.44771667,3275.8,3275.1,3.05331]
[1738249271329,0.66666667,3275.9,3275.2,0.64622666]
[1738249271496,0.66666667,3275.9,3275.8,3.05268]
[1738249271697,0.66666667,3275.9,3275.4,3.05299]
[1738249272035,0.66666667,3275.9,3274.8,0.55]
[1738249272036,0.66666667,3275.9,3275.0,3.05342]
[1738249272241,3.71927667,3275.9,3275.1,3.05333]
[1738249272573,0.66666667,3275.9,3275.2,3.08373662]
[1738249272847,0.66666667,3275.9,3275.1,3.05333]
[1738249272848,3.71929667,3275.9,3275.1,3.05333]
[1738249273013,3.05273,3275.8,3275.0,3.05343]
[1738249273419,3.71929667,3275.9,3275.1,3.05332]
[1738249273624,3.71929667,3275.9,3275.2,0.03052654]
[1738249273803,0.37192967,3275.8,3275.2,0.03052654]
[1738249274008,3.71929667,3275.9,3275.2,0.03052654]
[1738249274210,0.66666667,3275.9,3275.3,3.05309]
[1738249274426,0.66666667,3275.9,3275.5,3.05296]
[1738249274626,0.66666667,3275.9,3275.3,3.05309]
[1738249274832,0.66666667,3275.9,3275.3,3.05314]
[1738249275109,3.05287,3275.7,3274.8,3.65878671]
[1738249275447,0.7885,3275.8,3274.8,3.05353]
[1738249275606,0.66666667,3275.9,3274.9,0.03052768]
[1738249275806,0.66666667,3275.9,3275.2,3.05324]
[1738249276005,0.66666667,3275.9,3275.5,3.05296]
[1738249276767,0.66666667,3275.9,3275.3,3.08367454]
[1738249276926,0.66666667,3275.9,3275.6,3.05284]
[1738249277128,0.66666667,3275.9,3275.8,3.05268]
[1738249277666,0.66666667,3275.9,3275.8,3.08320052]
[1738249277810,0.66666667,3275.9,3275.8,3.69889972]
[1738249278009,0.66666667,3275.9,3275.8,3.66838]
[1738249278266,0.66666667,3275.9,3275.8,4.1370396]
[1738249278426,0.66666667,3275.9,3275.8,3.69889946]
[1738249278766,3.05083,3277.8,3276.9,3.05161]
[1738249278940,3.05083,3277.8,3276.1,3.05232]
[1738249278941,0.0075,3278.0,3276.2,6.08282012]
[1738249279260,0.8014,3277.3,3276.6,3.05194]
[1738249279809,0.7529,3278.6,3276.7,0.6157]
[1738249280013,0.7529,3278.7,3276.9,3.05166]
[1738249280253,0.7529,3277.8,3276.9,3.05166]
[1738249280515,0.7529,3277.8,3276.7,3.66752]
[1738249280715,0.7529,3277.8,3277.0,3.08205977]
[1738249280951,3.05091,3277.7,3276.7,0.61066462]
[1738249281253,3.05091,3277.7,3276.3,0.6157]
[1738249281254,3.05136,3277.3,3276.4,3.05207]
[1738249281407,3.05136,3277.3,3276.4,3.08258359]
[1738249281747,3.05092,3277.7,3276.7,3.05178]
[1738249281947,3.7529,3277.8,3277.0,3.05149]
[1738249282247,0.7529,3277.8,3276.6,3.05193]
[1738249282451,3.05085,3277.8,3276.5,0.60192513]
[1738249282609,0.7585,3278.0,3276.8,0.6157]
[1738249282811,0.7585,3278.5,3277.7,0.6157]
[1738249283065,0.7585,3279.1,3278.4,3.05023]
[1738249283390,0.7675,3279.6,3278.8,3.04982]
[1738249283504,3.81666,3279.6,3278.8,0.03049312]
[1738249283710,0.7675,3278.9,3277.8,3.05082]
[1738249283933,0.7675,3278.9,3277.7,0.6157]
[1738249283934,0.0075,3278.8,3277.7,0.6157]
[1738249284139,0.7675,3278.1,3277.3,3.05127]
[1738249284326,3.81813,3278.1,3277.3,3.05127]
[1738249284538,0.7675,3278.1,3277.4,3.05115]
[1738249284740,0.7675,3278.1,3277.5,3.05109]
[1738249285055,0.7675,3278.1,3277.3,3.05127]
[1738249285347,0.7675,3278.1,3277.1,0.6157]
[1738249285348,0.7675,3278.1,3277.6,3.05099]
[1738249285549,3.05072,3278.0,3276.8,0.46544722]
[1738249285753,3.05072,3278.0,3277.1,3.05147]
[1738249285953,3.05084,3277.8,3276.9,3.05158]
[1738249286251,3.05072,3278.0,3277.1,3.05147]
[1738249286455,3.06666,3276.9,3276.8,7.22e-06]
[1738249286756,3.05218,3276.4,3275.3,3.05313]
[1738249286925,3.05195,3276.6,3275.7,3.05276]
[1738249287152,3.05178,3276.8,3275.9,3.05258]
[1738249287356,0.7828,3276.9,3275.9,0.03051922]
[1738249287574,3.05127,3277.4,3276.4,3.05205]
[1738249287885,3.05141,3277.2,3276.4,3.05206]
[1738249288068,3.05162,3277.0,3276.0,0.6157]
[1738249288237,3.05146,3277.2,3276.0,0.6157]
[1738249288444,3.605896,3277.2,3276.0,0.6157]
[1738249288638,0.0075,3277.1,3275.6,0.62387426]
[1738249288886,3.05192,3276.7,3275.9,3.05257]
[1738249289049,0.825,3276.9,3275.9,3.05257]
[1738249289250,3.87672,3276.9,3276.1,3.05233]
[1738249289463,4.57029,3276.9,3276.1,3.05233]
[1738249289665,4.57029,3276.9,3276.2,3.05231]
[1738249289881,7.02182536,3277.6,3276.7,3.05184]
[1738249289882,0.7888,3277.6,3276.7,3.05184]
[1738249290182,0.7888,3277.6,3275.9,3.05253]
[1738249290183,0.015,3277.3,3275.9,3.05253]
[1738249290347,0.7888,3276.7,3276.0,3.05249]
[1738249290853,0.7888,3276.7,3275.9,3.05252]
[1738249291082,3.05213,3276.4,3275.6,3.67671426]
[1738249291402,3.05944,3276.6,3275.5,3.05288]
[1738249291687,4.172855,3276.7,3275.7,3.05278]
[1738249291846,0.7888,3276.7,3276.2,3.05224]
[1738249292047,0.7888,3276.7,3275.4,0.58051948]
[1738249292048,0.7888,3276.7,3275.8,3.05268]
[1738249292381,3.05225,3276.3,3275.4,3.05298]
[1738249292571,3.05233,3276.2,3275.4,3.05298]
[1738249292770,3.05247,3276.1,3275.0,3.05342]
[1738249293093,0.015,3276.6,3274.7,0.6157]
[1738249293094,3.05226,3276.3,3275.2,3.05316]
[1738249293291,0.7888,3276.7,3276.0,3.05241]
[1738249293586,0.7888,3276.7,3276.1,3.05239]
[1738249293747,0.7888,3276.7,3276.2,3.05229]
[1738249293948,0.7861,3277.1,3276.4,3.05211]
[1738249294160,4.221329,3277.1,3276.4,3.05211]
[1738249294346,0.0075,3277.0,3275.9,3.05255]
[1738249294571,1.169849,3277.1,3275.7,3.05275]
[1738249294572,3.05206,3276.5,3275.7,3.05275]
[1738249294777,3.05228,3276.3,3275.4,3.05297]
[1738249294979,3.0,3276.3,3275.2,0.6157]
[1738249295182,3.05261,3275.9,3274.6,0.6157]
[1738249295377,3.05245,3276.1,3275.3,3.05314]
[1738249295689,3.35239,3276.2,3275.4,3.05305]
[1738249296069,3.35239,3276.2,3275.2,3.05324]
[1738249296070,3.05245,3276.1,3275.2,3.05324]
[1738249296389,3.05245,3276.1,3275.4,0.28144637]
[1738249296592,3.693014,3276.0,3275.4,0.28144637]
[1738249297092,3.05265,3275.9,3275.4,0.28144637]
[1738249297291,0.640484,3276.0,3275.4,0.28144637]
[1738249297495,3.05242,3276.1,3275.4,0.28144637]
[1738249297789,3.05222,3276.3,3275.5,0.31197229]
[1738249297998,0.8284,3276.5,3276.0,3.05247]
[1738249298208,3.05168,3276.9,3276.0,3.05247]
[1738249298209,0.8026,3276.9,3276.0,3.05247]
[1738249298454,0.8026,3276.9,3276.1,3.05233]
[1738249298455,3.8026,3276.9,3276.1,3.05233]
[1738249298590,3.8026,3276.9,3276.1,0.4686596]
[1738249298901,0.8026,3276.9,3276.6,3.05193]
[1738249299102,0.8026,3276.9,3276.4,3.05205]
[1738249299320,0.8026,3276.9,3276.2,3.05231]
[1738249299468,0.8026,3276.9,3276.2,3.05224]
[1738249299977,1.18286,3276.9,3276.2,3.05224]
[1738249300174,0.8026,3276.9,3276.2,3.05224]
[1738249300388,0.8286,3277.3,3276.3,0.03051601]
[1738249300588,0.8286,3277.3,3276.3,0.55]
[1738249300803,0.8286,3277.3,3275.7,0.03051153]
[1738249300804,3.0515,3277.1,3275.7,3.6684]
[1738249300964,3.0515,3277.1,3276.3,3.0522]
[1738249301166,0.8286,3277.3,3276.4,0.28144637]
[1738249301505,0.8286,3277.3,3276.8,3.05167]
[1738249301701,0.8286,3277.3,3276.4,0.28144637]
[1738249301702,0.8286,3277.3,3276.7,0.03051202]
[1738249301879,0.7518,3277.8,3277.1,3.05139]
[1738249302076,0.7518,3277.8,3277.6,3.05097]
[1738249302280,0.7518,3278.4,3277.7,0.03050534]
[1738249302480,3.80214,3278.4,3277.7,3.08141534]
[1738249302777,0.7518,3278.4,3277.8,3.05081]
[1738249303110,3.04951,3279.3,3277.9,0.58049971]
[1738249303269,3.04951,3279.3,3278.0,0.03049374]
[1738249303464,3.04951,3279.3,3278.2,0.55]
[1738249303684,3.04951,3279.3,3278.5,3.05016]
[1738249303906,3.04953,3279.2,3278.3,3.05035]
[1738249304211,3.04987,3278.9,3277.9,0.28215505]
[1738249304406,3.05008,3278.6,3277.9,0.28215505]
[1738249304629,3.05008,3278.6,3277.9,3.33288505]
[1738249304630,3.743108,3278.6,3277.9,3.33288505]
[1738249304829,3.743108,3278.6,3278.0,0.28215505]
[1738249305316,0.693028,3278.6,3278.0,0.28215505]
[1738249305485,0.8303,3278.8,3278.2,3.05038]
[1738249305903,0.8303,3278.8,3278.0,0.28215505]
[1738249306130,0.8303,3278.8,3278.3,0.28215505]
[1738249306131,3.05026,3278.4,3278.3,0.28215505]
[1738249307744,3.05008,3278.6,3277.7,3.05089]
[1738249307959,3.05008,3278.6,3277.6,0.31265823]
[1738249307960,3.69303,3278.6,3277.6,0.31265823]
[1738249308119,3.05091,3277.7,3277.6,0.28215505]
[1738249308704,3.05091,3277.7,3276.9,3.05166]
[1738249308906,3.05104,3277.6,3276.9,3.05166]
[1738249309204,3.05091,3277.7,3277.0,3.05156]
[1738249310326,3.661075,3277.7,3276.8,3.05175]
[1738249310530,3.661075,3277.7,3276.9,3.05163]